[Event "Rapid Shavuot-A 2023"]
[Site "Ramat Gan"]
[Date "2023.05.25"]
[Round "1.1"]
[White "Yaniv, Ori"]
[Black "Alekseev, Evgeny"]
[Result "1-0"]
[ECO "B46"]
[WhiteElo "2156"]
[BlackElo "2564"]
[Annotator "TA"]
[PlyCount "72"]
[EventDate "2023.05.19"]
[EventType "swiss"]
[EventCountry "ISR"]
[SourceTitle "playchess.com"]
[Source "ChessBase"]
[SourceQuality "1"]
[TimeControl "900+5"]

{[%evp 10,72,22,28,25,26,33,24,29,24,35,13,6,-20,-15,-22,-16,-18,-1,-37,-26,-87,-91,-84,-53,-47,-36,-93,-62,-103,-79,-140,-137,-145,-103,-95,-106,-107,-105,-106,-106,-106,-72,-78,-73,-74,-58,-106,-80,-97,-98,-101,-99,-147,-141,-168,-111,-111,0,-158,-165,-166,-165,-161,-116]} 1. e4 {[%emt 0:00:03]} c5 {[%emt 0:00:03]} 2. Nf3 {[%emt 0:00:02]} e6 {[%emt 0:00:02]} 3. d4 {[%emt 0:00:02]} cxd4 {[%emt 0:00:03]} 4. Nxd4 {[%emt 0:00:01]} Nc6 {[%emt 0:00:03]} 5. Nc3 {[%emt 0:00:02]} a6 {[%emt 0:00:02]} 6. g3 {[%emt 0:00:22]} Nxd4 {[%emt 0:00:17] B46: Sicilian: Taimanov: 5 Nc3 a6.} 7. Qxd4 {[%emt 0:00:07]} b5 {[%emt 0:00:06] outshines the older 7...Ne7.} 8. Bg2 {[%emt 0:00:25]} Bb7 {[%emt 0:00:02] White has an edge.} 9. O-O {[%emt 0:00:02]} Ne7 {[%emt 0:00:02][%cal Bg8e7,Be7c6,Bc6e5,Be5c4][%mdl 32]} 10. Be3 {[%emt 0:01:09]} Nc6 {[%emt 0:00:54] [#]} 11. Qb6 $146 {[%emt 0:01:49]} ({Predecessor:} 11. Qd2 Rc8 12. a4 b4 13. Ne2 Be7 14. f4 O-O 15. Rfd1 d6 16. Qe1 Qc7 17. Rd2 {0-1 Sattarov,B (2433)-Barria Zuniga,D (2341) Speed Chess Q2 blitz 2022 (7)}) 11... Qxb6 {[%emt 0:00:45]} 12. Bxb6 {[%emt 0:00:02]} Ne5 {[%emt 0:00:35]} 13. Bd4 {[%emt 0:01:18]} f6 {[%emt 0:02:02]} (13... Nc4 $5 {[%cal Re6e5]}) 14. Ne2 {[%emt 0:01:56]} Rc8 {[%emt 0:00:40]} 15. c3 {[%emt 0:00:02] [#]} (15. Rfc1 $11 {remains equal.}) 15... Nc4 $1 $17 {[%emt 0:00:44]} 16. a4 {[%emt 0:00:49]} b4 {[%emt 0:02:15]} 17. cxb4 {[%emt 0:00:09]} Bxb4 {[%emt 0:00:03]} 18. Rac1 {[%emt 0:01:40]} (18. Rfd1 $15) 18... Ke7 {[%emt 0:00:34]} 19. Bc3 {[%emt 0:02:28] Against Nd2} a5 {[%emt 0:02:30]} 20. Rfd1 {[%emt 0:00:24]} ({White should play} 20. Rc2) 20... Bxc3 {[%emt 0:01:51]} 21. Rxc3 {[%emt 0:00:14]} Nxb2 {[%emt 0:00:24]} 22. Rb1 {[%emt 0:00:59]} Nxa4 {[%emt 0:00:04]} 23. Rxc8 {[%emt 0:00:30]} Bxc8 {[%emt 0:00:02]} 24. Ra1 {[%emt 0:00:02]} Nb6 {[%emt 0:00:12]} 25. Rxa5 {[%emt 0:00:02]} Nc4 {[%emt 0:00:06]} 26. Ra7 {[%emt 0:00:17]} Nd6 {[%emt 0:00:21]} 27. f4 {[%emt 0:00:59]} e5 {[%emt 0:00:50]} 28. Nc3 {[%emt 0:00:18]} (28. Ra5 $15) 28... Bb7 {[%emt 0:00:06]} 29. fxe5 {[%emt 0:00:55]} fxe5 {[%emt 0:00:01]} 30. Ra5 {[%emt 0:00:18]} Rc8 {[%emt 0:01:21]} 31. Nd5+ {[%emt 0:00:02]} (31. Rxe5+ $142 Kf6 32. Ra5) 31... Kd8 {[%emt 0:00:18]} 32. h4 {[%emt 0:00:10]} Nc4 {[%emt 0:00:16]} (32... Rc1+ $19 33. Kf2 Rc2+ 34. Kg1 h6) 33. Rb5 {[%emt 0:00:04]} Nd6 {[%emt 0:00:07]} (33... Bc6 $142 34. Rc5 Ba8 35. Rxc8+ Kxc8) 34. Ra5 {[%emt 0:00:01]} Rc1+ {[%emt 0:00:02] Black is clearly better.} 35. Kh2 {[%emt 0:00:01]} Rc2 {[%emt 0:00:09][%cal Od6c4] [#] ...Nc4! would be deadly.} 36. Kh3 {[%emt 0:00:11]} Nc4 {[%emt 0:00:13][%mdl 32768] Weighted Error Value: White=0.15 (very precise) /Black=0.12 (very precise) . Loss on time!?} 1-0

[Event "Rapid Shavuot-A 2023"]
[Site "Ramat Gan"]
[Date "2023.05.25"]
[Round "1.2"]
[White "Parkhov, Yair"]
[Black "Uritsky, Yonathan"]
[Result "1-0"]
[ECO "D02"]
[WhiteElo "2505"]
[BlackElo "2118"]
[Annotator "TA"]
[PlyCount "42"]
[EventDate "2023.05.19"]
[EventType "swiss"]
[EventCountry "ISR"]
[SourceTitle "playchess.com"]
[Source "ChessBase"]
[SourceQuality "1"]
[TimeControl "900+5"]

{[%evp 10,42,31,29,39,39,67,43,54,35,64,59,60,57,41,45,110,55,84,29,39,9,0,11,14,0,0,4,0,-8,108,12,13,27,11]} 1. d4 {[%emt 0:00:02]} Nf6 {[%emt 0:00:02]} 2. Nf3 {[%emt 0:00:02]} g6 {[%emt 0:00:04]} 3. Nbd2 {[%emt 0:00:01]} d5 {[%emt 0:00:07]} 4. e3 {[%emt 0:00:04]} Bg7 {[%emt 0:00:02]} 5. b4 {[%emt 0:15:21][%cal Bb2b4,Bb4b5][%mdl 32]} O-O 6. c4 {[%emt 0:00:00]} b6 {[%emt 0:00:33][%cal Oc7c5] D02: 1 d4 d5 2 Nf3 sidelines, including 2...Nf6 3 g3 and 2...Nf6 3 Bf4.} 7. Bb2 {[%emt 0:00:00] [#]} Ba6 $146 {[%emt 0:00:27]} ({Predecessor:} 7... e6 8. c5 Ne4 9. Bd3 f5 10. Rc1 a5 11. cxb6 cxb6 12. b5 Nd7 13. Ba3 Re8 {0-1 Caruana,F (2781)-Weetik,V (2423) Titled Tuesday intern op 08th Mar Early blitz 2022 (3)}) 8. b5 {[%emt 0:00:00]} Bb7 {[%emt 0:00:01] White is slightly better.} 9. a4 {[%emt 0:00:00]} c5 {[%emt 0:01:16]} 10. dxc5 $1 {[%emt 0:00:00]} bxc5 {[%emt 0:00:02]} 11. Be2 {[%emt 0:00:00]} Nbd7 {[%emt 0:00:16][%cal Od5d4]} 12. a5 {[%emt 0:00:00]} Re8 {[%emt 0:01:25]} (12... a6 $14) 13. O-O {[%emt 0:00:00] White is more active.} (13. a6 $16 Bc8 14. cxd5) 13... e5 $14 {[%emt 0:00:15][%cal Be7e5,Be5e4][%mdl 32] [#]} 14. a6 {[%emt 0:00:00]} ({White should play} 14. cxd5 $1 $16 {e4 would be deadly.} e4 15. Ng5) 14... Bc8 $11 {[%emt 0:00:02]} 15. cxd5 {[%emt 0:00:00] e4 is the strong threat.} (15. Nb3 $5 {[%cal Rc4d5]}) 15... e4 $1 {[%emt 0:00:20]} 16. Ne1 $36 {[%emt 0:00:00][%mdl 2048] White has some pressure.} Nb6 {[%emt 0:00:22]} 17. Nc4 {[%emt 0:00:00]} Nfxd5 {[%emt 0:00:14][%cal Bf6d5,Bd5c3,Bc3e2][%mdl 32]} 18. Bxg7 Kxg7 {[%emt 0:00:04]} 19. Nxb6 {[%emt 0:00:00]} axb6 {[%emt 0:00:05]} (19... Nxb6 $11 20. Qc2 Bd7) 20. Nc2 {[%emt 0:00:00]} (20. Qb3 $16) 20... Nc3 {[%emt 0:01:04]} 21. Qe1 {[%emt 0:00:00]} Nxe2+ {[%emt 0:00:06][%mdl 32768] Weighted Error Value: White=0.21 (precise) /Black=0.22 (precise) . Loss on time!?} 1-0

[Event "Rapid Shavuot-A 2023"]
[Site "Ramat Gan"]
[Date "2023.05.25"]
[Round "1.3"]
[White "Iliaguev, Daniel"]
[Black "Dvoirys, Semen I."]
[Result "0-1"]
[ECO "A45"]
[WhiteElo "2134"]
[BlackElo "2470"]
[Annotator "TA"]
[PlyCount "98"]
[EventDate "2023.05.19"]
[EventType "swiss"]
[EventCountry "ISR"]
[SourceTitle "playchess.com"]
[Source "ChessBase"]
[SourceQuality "1"]
[TimeControl "900+5"]

{[%evp 9,98,10,62,46,38,-23,-23,-20,-14,-85,-29,-104,325,333,325,-31,-14,-25,-31,-31,-29,-56,-44,-46,-37,-44,-20,-55,-51,-54,-50,-50,-42,-98,-65,-112,-107,-109,-115,-128,-128,-191,-191,-191,-191,-179,-147,-183,-182,-181,-155,-181,-149,-149,-147,-179,-164,-260,-256,-267,-230,-299,-289,-377,-373,-2056,-2595,-1735,-1129,-1716,-1858,-1748,-1649,-1650,-1664,-2533,-1962,-1870,-1906,-1786,-1722,-1656,-1443,-2500,-1823,-2090,-1742,-3461,-2842,-2015,-2280]} 1. d4 {[%emt 0:00:05]} Nf6 {[%emt 0:00:03]} 2. Bg5 {[%emt 0:00:14]} c5 {[%emt 0:00:04]} 3. d5 {[%emt 0:00:02]} Qb6 {[%emt 0:00:06]} 4. Nc3 {[%emt 0:00:09]} d6 {[%emt 0:00:15]} 5. e4 {[%emt 0:00:31]} g6 {[%emt 0:00:20]} (5... Qxb2 $11 6. Bd2 Qb6) 6. Nf3 {[%emt 0:03:22] [#] A45: Trompowsky Attack.} Qxb2 $146 {[%emt 0:02:44]} ({Predecessor:} 6... Bg7 7. Bb5+ Bd7 8. a4 a6 9. a5 Qc7 10. Bd3 O-O 11. O-O Bg4 12. h3 Bxf3 13. Qxf3 {1-0 Cheparinov,I (2679)-Iturrizaga Bonelli,E (2528) Dos Hermanas Internet f 10th blitz 2009 (2.3)}) 7. Bxf6 {[%emt 0:02:00]} (7. Nb5 $14 Nxe4 8. Rb1 (8. Nc7+ $2 Kd8 $19)) 7... exf6 $11 {[%emt 0:00:04]} 8. Nb5 {[%emt 0:00:19] Black has an edge.} ({Wrong is} 8. Bb5+ $2 Ke7 9. O-O (9. Kd2 $2 a6 $19) 9... Qxc3 $19) 8... Qb4+ {[%emt 0:00:41]} 9. Qd2 {[%emt 0:00:34]} (9. Nd2 $11 {keeps the balance.} Qa5 10. Qf3) 9... Na6 {[%emt 0:01:40]} (9... Qxe4+ $17 10. Be2 Kd8) 10. a3 {[%emt 0:02:45]} (10. Bd3 $11) 10... Qb2 $2 {[%emt 0:02:39][%mdl 8192] [#]} (10... Qxe4+ $17 {keeps the pressure on.} 11. Be2 Qe7) 11. Qd1 $1 $18 {[%emt 0:00:51] aiming for Rb1.} Bg4 {[%emt 0:00:18] [#]} 12. Rb1 $2 {[%emt 0:01:44]} (12. c3 $1 $18) 12... Bxf3 $1 $15 {[%emt 0:00:10]} 13. Rxb2 {[%emt 0:00:03]} Bxd1 {[%emt 0:00:02]} 14. Kxd1 {[%emt 0:00:01]} Kd8 {[%emt 0:00:13][%cal Be8d8,Bd8c7,Bc7c8][%mdl 32]} 15. f3 {[%emt 0:00:43]} Nb8 {[%emt 0:00:29][%cal Ba6b8,Bb8d7,Bd7b6,Bb6a4,Ba4b2][%mdl 32]} 16. a4 {[%emt 0:00:48]} Nd7 {[%emt 0:00:25]} 17. Na3 {[%emt 0:00:02]} Kc7 {[%emt 0:00:12]} 18. Nb5+ {[%emt 0:01:05]} Kc8 {[%emt 0:00:01]} 19. Na3 {[%emt 0:00:01]} f5 {[%emt 0:01:04]} 20. exf5 {[%emt 0:00:17]} Nb6 {[%emt 0:00:01]} 21. fxg6 {[%emt 0:01:06]} ({White should play} 21. Rb3 $15) 21... hxg6 {[%emt 0:00:05]} ({Don't do} 21... Nxd5 22. gxf7 Nc3+ 23. Kd2 Nxa4 24. Ra2 $14) 22. c4 {[%emt 0:00:05]} (22. a5 $15 {feels stronger.} Nxd5 23. Rb3) 22... Nxa4 $17 {[%emt 0:00:10]} 23. Rb3 {[%emt 0:00:02]} a6 {[%emt 0:00:12]} 24. Bd3 {[%emt 0:00:08]} Bg7 {[%emt 0:00:29]} 25. h3 {[%emt 0:00:05]} (25. Kd2 $17) 25... Nb2+ $19 {[%emt 0:00:37]} 26. Kc2 {[%emt 0:00:03]} Nxd3 {[%emt 0:00:02]} 27. Kxd3 {[%emt 0:00:05]} Kc7 {[%emt 0:00:04]} 28. Rhb1 {[%emt 0:00:04]} Rab8 {[%emt 0:00:01]} 29. Nc2 {[%emt 0:00:07]} Bh6 {[%emt 0:00:19]} 30. Ne3 {[%emt 0:00:03]} Bxe3 {[%emt 0:00:04]} 31. Kxe3 {[%emt 0:00:02][%mdl 4096] Endgame KRR-KRR} Rhe8+ {[%emt 0:00:02]} 32. Kd3 {[%emt 0:00:10]} g5 {[%emt 0:00:20]} 33. Rb6 {[%emt 0:00:02]} (33. g3 $142) 33... f5 {[%emt 0:00:14][%cal Bf7f5,Bf5f4][%mdl 32]} 34. Kd2 {[%emt 0:00:09]} f4 {[%emt 0:00:05]} 35. R1b2 {[%emt 0:00:05]} Re3 {[%emt 0:00:09]} 36. Rb1 {[%emt 0:00:06]} a5 {[%emt 0:00:19][%cal Ba6a5,Ba5a4,Ba4a3][%mdl 32]} 37. R1b2 $2 {[%emt 0:00:04]} (37. R6b5 a4 38. Ra5) 37... a4 {[%emt 0:00:02] Threatens to win with ...a3. Black is clearly winning.} 38. R6b5 {[%emt 0:00:02]} b6 {[%emt 0:00:05] ...a3 is the strong threat.} 39. Ra2 {[%emt 0:00:02]} a3 {[%emt 0:00:06]} 40. Rb1 {[%emt 0:00:03]} Rbe8 {[%emt 0:00:08]} 41. Rba1 {[%emt 0:00:03]} Re2+ {[%emt 0:00:08]} 42. Kd1 {[%emt 0:00:01]} Re1+ {[%emt 0:00:08]} 43. Kc2 {[%emt 0:00:02]} Rxa1 {[%emt 0:00:26]} 44. Rxa1 {[%emt 0:00:02] KR-KR} Re2+ {[%emt 0:00:01]} 45. Kd3 {[%emt 0:00:24]} Re3+ {[%emt 0:00:08]} ({Inferior is} 45... Rxg2 46. Rxa3 Kb7 47. Ra1 $17) 46. Kc2 {[%emt 0:00:04] [#]} b5 $1 {[%emt 0:00:04][%mdl 512]} 47. cxb5 {[%emt 0:00:04]} Kb6 {[%emt 0:00:00]} 48. Rb1 {[%emt 0:00:03]} a2 {[%emt 0:00:04] ( -> ...Re2+)} 49. Ra1 {[%emt 0:00:05]} Kxb5 {[%emt 0:00:03] Black used his chance.   Weighted Error Value: White=0.81/Black=0.39} 0-1

[Event "Rapid Shavuot-A 2023"]
[Site "Ramat Gan"]
[Date "2023.05.25"]
[Round "1.4"]
[White "Zanan, Evgeny"]
[Black "Andreev, Dmitri"]
[Result "1-0"]
[ECO "C41"]
[WhiteElo "2485"]
[BlackElo "2166"]
[Annotator "TA"]
[PlyCount "86"]
[EventDate "2023.05.19"]
[EventType "swiss"]
[EventCountry "ISR"]
[SourceTitle "playchess.com"]
[Source "ChessBase"]
[SourceQuality "1"]
[TimeControl "900+5"]

{[%evp 19,86,12,12,0,0,-25,-18,-12,-18,-20,0,0,68,20,91,89,93,93,85,72,107,45,106,108,100,95,92,96,122,129,131,112,132,107,99,94,66,74,78,51,70,72,156,59,64,68,133,86,165,168,170,187,173,147,155,116,238,243,388,412,371,290,516,520,593,575,502,479,465]} 1. e4 {[%emt 0:00:02]} d6 {[%emt 0:00:09]} 2. d4 {[%emt 0:00:02]} Nf6 {[%emt 0:00:05]} 3. Nc3 {[%emt 0:00:01]} e5 {[%emt 0:00:06]} 4. Nf3 {[%emt 0:00:56]} Nbd7 {[%emt 0:00:04]} 5. Bc4 {[%emt 0:00:02]} Be7 {[%emt 0:00:05]} 6. O-O {[%emt 0:00:04]} O-O {[%emt 0:00:04]} 7. Re1 {[%emt 0:00:13]} c6 {[%emt 0:00:11]} 8. a4 {[%emt 0:00:01]} b6 {[%emt 0:01:15]} 9. d5 {[%emt 0:05:01]} cxd5 {[%emt 0:00:34]} 10. Nxd5 {[%emt 0:00:02]} Bb7 {[%emt 0:01:12]} 11. c3 {[%emt 0:00:31] C41: Philidor Defence.} Rc8 {[%emt 0:01:15]} 12. Ba2 {[%emt 0:00:06]} Nc5 {[%emt 0:00:44]} 13. Nxf6+ {[%emt 0:00:15] The position is equal.} Bxf6 {[%emt 0:00:15]} 14. Bd5 {[%emt 0:00:02] [#]} Bxd5 $146 {[%emt 0:04:15]} ({Predecessor:} 14... Qd7 15. a5 b5 16. b4 Bxd5 17. bxc5 Ba8 18. Qxd6 Qxd6 19. cxd6 Rfd8 20. Ba3 Rxc3 {0-1 Horvath,A (2437)-Varga,Z (2518) Zalakaros op 18th 1999 (7)}) 15. Qxd5 {[%emt 0:01:23]} Ne6 {[%emt 0:00:12]} (15... Qd7 $11) 16. Be3 {[%emt 0:00:46]} (16. Rd1 $14 {might be stronger.}) 16... Be7 {[%emt 0:00:07]} (16... Nc7 $11 17. Qd3 Qd7) 17. a5 {[%emt 0:00:20]} Qc7 {[%emt 0:01:05]} 18. axb6 {[%emt 0:00:28]} axb6 {[%emt 0:00:02]} 19. Ra6 {[%emt 0:00:02]} Rb8 {[%emt 0:00:27]} 20. Nd2 {[%emt 0:00:10]} (20. Rea1 $16) 20... b5 {[%emt 0:01:19]} (20... Qd7 $14) 21. Ra7 $16 {[%emt 0:00:30]} Qd8 {[%emt 0:00:02]} 22. Nf3 {[%emt 0:00:32]} b4 {[%emt 0:00:48]} 23. c4 {[%emt 0:00:07] White is much more active.} b3 {[%emt 0:00:21]} 24. Rea1 {[%emt 0:00:10]} h6 {[%emt 0:00:21]} 25. h3 {[%emt 0:00:12][%cal Oc4c5]} Re8 {[%emt 0:00:19]} 26. R1a3 {[%emt 0:00:55]} Qc8 {[%emt 0:00:09]} 27. Nd2 {[%emt 0:00:54]} Bg5 {[%emt 0:00:45]} 28. Bxg5 {[%emt 0:00:23]} (28. Qxd6 $2 Rd8 29. Qxe5 Bxe3 30. fxe3 Rxd2 $19) (28. Nxb3 $6 Bxe3 29. fxe3 Qd8 $11) 28... hxg5 {[%emt 0:00:03]} 29. Rxb3 {[%emt 0:00:18]} ({Much worse is} 29. Qxd6 Rd8 30. Qe7 Rxd2 $11) (29. g3 {keeps more tension.} g4 30. hxg4 Qd8 31. Rxb3 Qg5 32. Rxb8 Rxb8 33. Qxd6 Rxb2 34. Qd7) 29... Rxb3 30. Nxb3 {[%emt 0:00:01] Black must now prevent Na5.} Qb8 {[%emt 0:00:40]} ({Black should try} 30... g4) 31. Qb7 {[%emt 0:00:59]} (31. Rb7 $16 Qd8 32. g3) 31... Qxb7 $14 {[%emt 0:00:05]} 32. Rxb7 {[%emt 0:00:01][%mdl 4096] Endgame KRN-KRN} Rc8 {[%emt 0:00:11] [#]} (32... Ra8 $14) 33. Nd2 {[%emt 0:00:01]} (33. Na5 $142 $1) 33... Rc6 {[%emt 0:00:20]} (33... Ra8 $16) 34. g3 $18 {[%emt 0:00:17]} Ra6 {[%emt 0:00:04]} 35. Kg2 {[%emt 0:00:13]} Nc5 {[%emt 0:00:07]} 36. Rb8+ {[%emt 0:00:30]} Kh7 {[%emt 0:00:01]} 37. Kf3 {[%emt 0:00:00]} Ra1 {[%emt 0:00:03] This move loses the game for Black.} (37... g6 $16 {was worth a try.} 38. Nf1 Nd3) 38. Rb6 {[%emt 0:00:38]} Nd3 {[%emt 0:00:12]} (38... Ra2 $142 39. Ke3 (39. Rxd6 Rxb2 40. Kg4 f6 $16) 39... Ra6 40. Rxa6 Nxa6) 39. Ke2 {[%emt 0:00:06]} (39. Rxd6 Nxb2 40. Kg4 Rc1 $16) 39... Nc1+ {[%emt 0:00:11]} 40. Ke3 {[%emt 0:00:01][%cal Od2f3] aiming for Nf3!} Ra2 $2 {[%emt 0:00:05] [#]} (40... Ra4 41. Rxd6 Rb4) 41. Nf3 {[%emt 0:00:36] White is clearly winning.} ({Less strong is} 41. Rxd6 Rxb2 42. f4 exf4+ 43. gxf4 gxf4+ 44. Kxf4 Rc2 $16) 41... f6 {[%emt 0:00:03]} 42. Kd2 {[%emt 0:00:01]} ({Stronger than} 42. Rxd6 Rxb2 43. Nd2 Rc2 $11) 42... Ra1 {[%emt 0:00:12]} 43. Ne1 {[%emt 0:00:28]} Kg6 {[%emt 0:00:12] Weighted Error Value: White=0.16 (very precise) /Black=0.37} 1-0

[Event "Rapid Shavuot-A 2023"]
[Site "Ramat Gan"]
[Date "2023.05.25"]
[Round "1.5"]
[White "Orian, Noga"]
[Black "Bronstein, Or"]
[Result "0-1"]
[ECO "E11"]
[WhiteElo "2131"]
[BlackElo "2463"]
[Annotator "TA"]
[PlyCount "104"]
[EventDate "2023.05.19"]
[EventType "swiss"]
[EventCountry "ISR"]
[SourceTitle "playchess.com"]
[Source "ChessBase"]
[SourceQuality "1"]
[TimeControl "900+5"]

{[%evp 13,104,4,20,-4,11,12,18,0,14,0,5,0,-8,0,3,-27,-16,-33,-20,-84,-85,-91,-82,-84,-92,-116,-103,-111,-105,-164,-124,-239,-247,-312,-189,-320,-320,-319,-275,-279,-272,-308,-83,-89,-121,-98,-71,-355,-347,-347,-341,-339,-325,-290,-209,-221,-213,-203,-185,-193,-145,-134,-158,-421,-36,-220,-48,-550,-64,-100,0,0,0,-177,-177,-6510,-511,-506,-490,-475,-468,-468,-442,-461,-419,-427,-377,-402,-402,-2637,-1623,-29994,-29995]} 1. d4 {[%emt 0:00:04]} d5 {[%emt 0:00:45]} 2. c4 {[%emt 0:00:02]} e6 {[%emt 0:00:01]} 3. Nf3 {[%emt 0:00:03]} Nf6 {[%emt 0:00:10]} 4. g3 {[%emt 0:00:02]} Bb4+ {[%emt 0:00:15]} 5. Bd2 {[%emt 0:00:03]} Be7 {[%emt 0:00:10]} 6. Bg2 {[%emt 0:00:02]} O-O {[%emt 0:00:04]} 7. O-O {[%emt 0:00:06]} c6 {[%emt 0:00:02]} 8. Bc3 {[%emt 0:00:02] E11: Bogo-Indian.} Nbd7 {[%emt 0:00:15]} 9. Nbd2 {[%emt 0:00:03]} a5 {[%emt 0:00:36]} 10. a3 {[%emt 0:01:55] The position is equal.} b6 {[%emt 0:02:01]} 11. b4 {[%emt 0:01:07]} Ba6 {[%emt 0:01:38] [#]} 12. Ne5 $146 {[%emt 0:01:35]} ({Predecessor:} 12. Qb3 Qc7 13. Rfc1 Rfc8 14. e3 Qd8 15. bxa5 bxa5 16. c5 Rcb8 17. Qc2 Qc7 18. a4 {½-½ Markus,R (2650)-Nevednichy,V (2528) CRO-chT1A 26th 2017 (2.13)}) 12... Nxe5 {[%emt 0:00:40]} 13. dxe5 {[%emt 0:00:03]} Nd7 {[%emt 0:00:01]} 14. Qc2 {[%emt 0:06:39]} Qc7 {[%emt 0:01:05]} 15. f4 {[%emt 0:00:30]} Rac8 {[%emt 0:02:57]} 16. Rfc1 {[%emt 0:01:05]} (16. Qa2 $11) 16... Bxc4 $17 {[%emt 0:01:25]} 17. Nxc4 {[%emt 0:00:03]} dxc4 {[%emt 0:00:01]} 18. bxa5 {[%emt 0:00:37]} b5 {[%emt 0:00:01]} 19. Bb4 {[%emt 0:01:55]} Nc5 {[%emt 0:00:15]} 20. Rab1 {[%emt 0:00:24]} Nb3 {[%emt 0:01:15]} 21. Rd1 {[%emt 0:00:18]} (21. Rxb3 $17 cxb3 22. Qxb3) 21... Nxa5 {[%emt 0:01:01]} 22. Bxe7 {[%emt 0:00:02]} (22. Be4 $17) 22... Qxe7 $19 {[%emt 0:00:01]} 23. Rd6 {[%emt 0:00:02]} Nb3 {[%emt 0:00:30]} 24. a4 {[%emt 0:00:14]} (24. e3 $142) 24... Qa7+ {[%emt 0:00:10]} ({Not} 24... bxa4 25. Qxc4 Qa7+ 26. Kh1 $17) 25. Kf1 {[%emt 0:00:07]} Qxa4 {[%emt 0:00:14]} ({Stronger than} 25... bxa4 26. Qxc4 Rb8 27. Rb2 $17) 26. Bxc6 {[%emt 0:00:02]} g6 {[%emt 0:01:05][%cal Oc8c6]} 27. h4 {[%emt 0:00:02] [#]} Rxc6 $2 {[%emt 0:00:08]} 28. Rxc6 $17 {[%emt 0:00:03]} Qa8 {[%emt 0:00:01]} 29. Rd6 {[%emt 0:00:13]} Nc5 {[%emt 0:00:20][%cal Bb3c5,Bc5e4,Be4g3][%mdl 32] White must now prevent ...Ne4.} 30. Rxb5 $2 {[%emt 0:00:06][%mdl 8192]} (30. Rd4 $17 {is a better defense.}) 30... Qh1+ $19 {[%emt 0:00:03]} 31. Kf2 {[%emt 0:00:01]} Ne4+ {[%emt 0:00:06]} 32. Ke3 {[%emt 0:00:02]} Nxg3 {[%emt 0:00:06]} 33. Rb1 {[%emt 0:00:11] Repels Qg1+} Qxh4 {[%emt 0:00:12]} 34. Qxc4 {[%emt 0:00:05]} Nf5+ {[%emt 0:00:00]} 35. Kd2 {[%emt 0:00:02]} Qf2 {[%emt 0:00:16][%mdl 1024] Black has strong compensation.} 36. Rd3 {[%emt 0:00:06]} h5 {[%emt 0:00:03]} (36... Ra8 $19 37. Rf3 Qh2) 37. Qe4 $17 {[%emt 0:00:06]} Rc8 {[%emt 0:00:07]} 38. Qb7 $2 {[%emt 0:00:06]} (38. Rc1 $17 {keeps fighting.} Rb8 39. Rcc3) 38... Qc5 $2 {[%emt 0:00:03]} (38... Qxf4+ $19 39. Ke1 Rc4) 39. Qb3 $2 {[%emt 0:00:05] [#]} (39. Ke1 $15) 39... Kg7 $2 {[%emt 0:00:03]} ({But not} 39... Qf2 $2 40. Qb7 Qxf4+ 41. Kd1 $19) ({Black should try} 39... Ra8 $1 $19 {Hoping for ...Qf2.} 40. e3 Qc6) 40. e3 $2 {[%emt 0:00:03][%mdl 8192]} (40. Qc3 $15) 40... h4 $2 {[%emt 0:00:03]} (40... Qc6 $19 41. Rc3 Qg2+ 42. Kc1 Rxc3+ 43. Qxc3 Qf1+ 44. Kb2 Qf2+ 45. Ka1 Nxe3) 41. Qc3 $15 {[%emt 0:00:06] [#]} Ng3 {[%emt 0:00:12] Dancing on a razor blade.} ({Better is} 41... Qf8 $1 $17 42. Qb4 Qe8) 42. Qxc5 $11 {[%emt 0:00:02]} Rxc5 {[%emt 0:00:00][%mdl 4096] Endgame KRR-KRN} 43. Rd4 $2 {[%emt 0:00:06]} (43. Ke1 $11) 43... h3 $19 {[%emt 0:00:06]} 44. Ke1 $2 {[%emt 0:00:09]} (44. f5 exf5 45. Rh4) 44... h2 {[%emt 0:00:01]} (44... Rc2 $142 {( -> ...h2)} 45. Rd2 h2 {[%mdl 64] X-Ray Attack} 46. Rxh2 Rxh2) 45. Kf2 {[%emt 0:00:01]} h1=Q {[%emt 0:00:05]} 46. Rxh1 {[%emt 0:00:02]} Nxh1+ {[%emt 0:00:02] KRN-KR} 47. Kg2 {[%emt 0:00:01]} Rc1 {[%emt 0:00:03]} 48. Ra4 {[%emt 0:00:11]} Re1 {[%emt 0:00:09][%cal Oe1e3]} 49. Ra3 {[%emt 0:00:04]} Kh6 {[%emt 0:00:02] Strongly threatening ...Kh5.} 50. Rb3 {[%emt 0:00:05]} Kh5 {[%emt 0:00:03] Threatens to win with ...Kg4.} 51. e4 {[%emt 0:00:11]} (51. Kf3 $142 Rf1+ 52. Kg2) 51... Kg4 {[%emt 0:00:02]} 52. Rf3 {[%emt 0:00:04]} Re2+ {[%emt 0:00:03] Weighted Error Value: White=0.81/Black=0.60} 0-1